bitfinex-derivatives/quotes_BNBF0:USTF0_20250331
["timestamp","ask_amount","ask_price","bid_price","bid_amount"]
[1743448745993,0.30298715,606.93,606.14,0.32995677]
[1743448746192,0.30298715,607.53,606.14,0.32995677]
[1743448746396,0.28692275,606.93,606.14,0.32995677]
[1743448746595,2.50957264,607.56,606.14,0.32995677]
[1743448746596,0.30298715,606.92,606.14,0.32995677]
[1743448746795,0.30298715,607.55,606.14,0.32995677]
[1743448746996,0.892,606.91,606.14,0.32995677]
[1743448747595,0.28697244,606.9,606.14,0.32995677]
[1743448748498,0.892,606.91,606.14,0.32995677]
[1743448748698,0.28697007,606.89,606.14,0.32995677]
[1743448751499,0.892,606.91,606.14,0.32995677]
[1743448751700,0.28696416,606.88,606.14,0.32995677]
[1743448754197,0.30308887,606.87,606.14,0.32995677]
[1743448754601,0.28705884,606.86,606.14,0.32995677]
[1743448754899,0.30308887,606.85,606.14,0.32995677]
[1743448757598,0.30308887,606.9,606.14,0.32995677]
[1743448757802,0.28709318,606.84,606.14,0.32995677]
[1743448758002,0.30308887,606.83,606.14,0.32995677]
[1743448760505,0.30308887,606.9,606.14,0.32995677]
[1743448760699,0.30308887,606.89,606.14,0.32995677]
[1743448760899,0.28707779,606.82,606.14,0.32995677]
[1743448761106,0.30308887,606.81,606.14,0.32995677]
[1743448761908,0.30308195,606.8,606.14,0.32995677]
[1743448762205,0.30308195,606.79,606.14,0.32995677]
[1743448762406,0.30308195,606.81,606.14,0.32995677]
[1743448762607,0.30308195,606.8,606.14,0.32995677]
[1743448762906,0.30308195,606.79,606.14,0.32995677]
[1743448763104,0.30308195,606.81,606.14,0.32995677]
[1743448763302,0.30308195,606.8,606.14,0.32995677]
[1743448763506,0.30308157,606.79,606.14,0.32995677]
[1743448763806,0.30308157,606.78,606.14,0.32995677]
[1743448764002,0.30308157,606.77,606.14,0.32995677]
[1743448764207,0.30308157,606.79,606.14,0.32995677]
[1743448764507,0.30308157,606.78,606.14,0.32995677]
[1743448764704,0.30308157,606.79,606.14,0.32995677]
[1743448764905,0.30308157,606.78,606.14,0.32995677]
[1743448765109,0.30308157,606.79,606.14,0.32995677]
[1743448765408,0.30308157,606.78,606.14,0.32995677]
[1743448765609,0.30308157,606.77,606.14,0.32995677]
[1743448765809,0.30308157,606.79,606.14,0.32995677]
[1743448766010,0.30308157,606.78,606.14,0.32995677]
[1743448766207,0.28707305,606.8,606.14,0.32995677]
[1743448766208,0.30308157,606.77,606.14,0.32995677]
[1743448766416,0.30308157,606.76,606.14,0.32995677]
[1743448766611,0.28705884,606.76,606.14,0.32995677]
[1743448766910,0.30308157,606.75,606.14,0.32995677]
[1743448768407,0.30308567,606.74,606.14,0.32995677]
[1743448768605,0.28705884,606.76,606.14,0.32995677]
[1743448768606,0.30308567,606.75,606.14,0.32995677]
[1743448768910,0.28705884,606.76,606.14,0.32995677]
[1743448768911,0.30308567,606.74,606.14,0.32995677]
[1743448769111,0.30308567,606.75,606.14,0.32995677]
[1743448769304,0.30308567,606.74,606.14,0.32995677]
[1743448769511,0.30308567,606.73,606.14,0.32995677]
[1743448769710,0.2870399,606.74,606.14,0.32995677]
[1743448769909,0.30308567,606.73,606.14,0.32995677]
[1743448770915,0.2870399,606.74,606.14,0.32995677]
[1743448772210,0.3030484,606.73,606.14,0.32995677]
[1743448772611,0.3030484,606.9,606.14,0.32995677]
[1743448772816,0.28702451,606.72,606.14,0.32995677]
[1743448773019,0.892,606.91,606.14,0.32995677]
[1743448773519,0.28699492,606.77,606.14,0.32995677]
[1743448773718,0.30304797,606.76,606.14,0.32995677]
[1743448773914,0.892,606.91,606.14,0.32995677]
[1743448773915,0.28698427,606.77,606.14,0.32995677]
[1743448774119,0.30304797,606.76,606.14,0.32995677]
[1743448775520,0.892,606.91,606.14,0.32995677]
[1743448775725,0.28699729,606.77,606.14,0.32995677]
[1743448775927,0.30304089,606.76,606.14,0.32995677]
[1743448776223,0.30304089,606.75,606.14,0.32995677]
[1743448776427,0.30304247,606.76,606.14,0.32995677]
[1743448776726,0.28697481,606.77,606.14,0.32995677]
[1743448776922,0.30304247,606.76,606.14,0.32995677]
[1743448778527,0.30304247,606.9,606.14,0.32995677]
[1743448778722,0.28700676,606.85,606.14,0.32995677]
[1743448781527,0.892,606.91,606.14,0.32995677]
[1743448781726,0.28697599,606.9,606.14,0.32995677]
[1743448787338,0.892,606.91,606.14,0.32995677]
[1743448787838,0.28698782,606.9,606.14,0.32995677]
[1743448790442,0.892,606.91,606.14,0.32995677]
[1743448790937,0.28697244,606.9,606.14,0.32995677]
[1743448792147,0.30301101,606.89,606.14,0.32995677]
[1743448793847,0.59000238,606.88,606.14,0.32995677]
[1743448794050,0.30301101,606.87,606.14,0.32995677]
[1743448796553,0.30301101,606.86,606.14,0.32995677]
[1743448796852,0.28697836,606.86,606.14,0.32995677]
[1743448801456,0.892,606.91,606.14,0.32995677]
[1743448801659,0.28702925,606.85,606.14,0.32995677]
[1743448802354,0.892,606.91,606.14,0.32995677]
[1743448802758,1.17901504,606.91,606.14,0.32995677]
[1743448805361,0.892,606.91,606.14,0.32995677]
[1743448805761,1.17898901,606.91,606.14,0.32995677]
[1743448805962,0.28698901,606.91,606.14,0.32995677]
[1743448808864,0.798,606.9,606.14,0.32995677]
[1743448830788,0.28688254,607.06,606.14,0.32995677]
[1743448831687,0.30289129,607.05,606.14,0.32995677]
[1743448832588,0.30289129,607.8,606.14,0.32995677]
[1743448832891,0.28692748,607.04,606.14,0.32995677]
[1743448833188,0.30289129,607.03,606.14,0.32995677]
[1743448833387,0.30289129,607.77,606.14,0.32995677]
[1743448833583,0.32908268,607.75,606.14,0.32995677]
[1743448833782,0.30289129,607.74,606.14,0.32995677]
[1743448833982,0.32909892,607.72,606.14,0.32995677]
[1743448834184,0.30289129,607.71,606.14,0.32995677]
[1743448834389,0.32911517,607.69,606.14,0.32995677]
[1743448834588,0.30289129,607.68,606.14,0.32995677]
[1743448834788,0.63201729,607.67,606.14,0.32995677]
[1743448834988,0.63202271,607.66,606.14,0.32995677]
[1743448835190,0.32913683,607.65,606.14,0.32995677]
[1743448835488,0.63208336,607.65,606.14,0.32995677]
[1743448835689,0.58982553,607.64,606.14,0.32995677]
[1743448835885,0.6320942,607.63,606.14,0.32995677]
[1743448836090,0.63209961,607.62,606.14,0.32995677]
[1743448836289,0.63210503,607.61,606.14,0.32995677]
[1743448836489,0.63211045,607.6,606.14,0.32995677]
[1743448836688,0.63211587,607.59,606.14,0.32995677]
[1743448836889,0.63214283,607.58,606.14,0.32995677]
[1743448837090,0.63214825,607.57,606.14,0.32995677]
[1743448837290,0.63215367,607.56,606.14,0.32995677]
[1743448837491,0.63215909,607.55,606.14,0.32995677]
[1743448837684,0.63216451,607.54,606.14,0.32995677]
[1743448837889,0.63216993,607.53,606.14,0.32995677]
[1743448838090,0.32920726,607.52,606.14,0.32995677]
[1743448838288,0.30296808,607.51,606.14,0.32995677]
[1743448838487,0.30296808,607.5,606.14,0.32995677]
[1743448838687,0.30296808,607.49,606.14,0.32995677]
[1743448838887,0.30296808,607.48,606.14,0.32995677]
[1743448839092,0.30296808,607.47,606.14,0.32995677]
[1743448839292,0.30296808,607.46,606.14,0.32995677]
[1743448839593,0.32922352,607.49,606.14,0.32995677]
[1743448839594,0.30296808,607.45,606.14,0.32995677]
[1743448839792,0.30296808,607.44,606.14,0.32995677]
[1743448840092,0.30296808,607.43,606.14,0.32995677]
[1743448840292,0.30296808,607.42,606.14,0.32995677]
[1743448840491,0.30296808,607.41,606.14,0.32995677]
[1743448840687,0.30296808,607.4,606.14,0.32995677]
[1743448840992,0.30296808,607.39,606.14,0.32995677]
[1743448841193,0.30296808,607.38,606.14,0.32995677]
[1743448841394,0.30296808,607.37,606.14,0.32995677]
[1743448841593,0.32922352,607.49,606.14,0.32995677]
[1743448841892,0.28688964,607.37,606.14,0.32995677]
[1743448842089,0.30295802,607.36,606.14,0.32995677]
[1743448842293,0.28688727,607.36,606.14,0.32995677]
[1743448842492,0.30295802,607.35,606.14,0.32995677]
[1743448843794,0.28688727,607.36,606.14,0.32995677]
[1743448843795,0.30295802,607.34,606.14,0.32995677]
[1743448843993,0.30295802,607.33,606.14,0.32995677]
[1743448844192,0.30295802,607.32,606.14,0.32995677]
[1743448844392,0.30295802,607.31,606.14,0.32995677]
[1743448844594,0.30295802,607.3,606.14,0.32995677]
[1743448844891,0.30295802,607.29,606.14,0.32995677]
[1743448845096,0.30295802,607.28,606.14,0.32995677]
[1743448845397,0.30295802,607.27,606.14,0.32995677]
[1743448845598,0.30295802,607.26,606.14,0.32995677]
[1743448845895,0.30295802,607.25,606.14,0.32995677]
[1743448846095,0.30295802,607.24,606.14,0.32995677]
[1743448846298,0.30295802,607.23,606.14,0.32995677]
[1743448846596,0.30295802,607.22,606.14,0.32995677]
[1743448846791,0.30295802,607.3,606.14,0.32995677]
[1743448846989,0.30295802,607.29,606.14,0.32995677]
[1743448847188,0.30295802,607.28,606.14,0.32995677]
[1743448847390,0.30295802,607.27,606.14,0.32995677]
[1743448847593,0.30295802,607.26,606.14,0.32995677]
[1743448847794,0.30295802,607.25,606.14,0.32995677]
[1743448847994,0.30295802,607.24,606.14,0.32995677]
[1743448848192,0.2869263,607.31,606.14,0.32995677]
[1743448848193,0.30295802,607.23,606.14,0.32995677]
[1743448848391,0.30295802,607.22,606.14,0.32995677]
[1743448848593,0.30295802,607.3,606.14,0.32995677]
[1743448848794,0.30295802,607.29,606.14,0.32995677]
[1743448849090,0.30296169,607.28,606.14,0.32995677]
[1743448849397,0.30296169,607.27,606.14,0.32995677]
[1743448849600,0.30296169,607.26,606.14,0.32995677]
[1743448849799,0.30296169,607.25,606.14,0.32995677]
[1743448849995,0.30296169,607.24,606.14,0.32995677]
[1743448850194,0.30296169,607.23,606.14,0.32995677]
[1743448850398,0.30296169,607.22,606.14,0.32995677]
[1743448850601,0.30296169,607.21,606.14,0.32995677]
[1743448850802,0.28690028,607.22,606.14,0.32995677]
[1743448851001,0.30296169,607.21,606.14,0.32995677]
[1743448851399,0.30295147,607.2,606.14,0.32995677]
[1743448851596,0.30295147,607.21,606.14,0.32995677]
[1743448851802,0.30295147,607.2,606.14,0.32995677]
[1743448852002,0.30295147,607.19,606.14,0.32995677]
[1743448852199,0.30295147,607.18,606.14,0.32995677]
[1743448852401,0.30295147,607.17,606.14,0.32995677]
[1743448852700,0.30295147,607.16,606.14,0.32995677]
[1743448852906,0.28690028,607.22,606.14,0.32995677]
[1743448853108,0.30294654,607.21,606.14,0.32995677]
[1743448853801,0.58983973,607.2,606.14,0.32995677]
[1743448854002,0.30294654,607.19,606.14,0.32995677]
[1743448856706,0.58978744,607.18,606.14,0.32995677]
[1743448856906,0.30291909,607.17,606.14,0.32995677]
[1743448859613,0.30291909,607.48,606.14,0.32995677]
[1743448859915,0.28685417,607.16,606.15,1.96666131]
[1743448860115,0.30291909,607.15,606.16,0.32994588]
[1743448860418,0.30291909,607.14,606.16,0.32994588]
[1743448862819,0.58985249,607.13,606.16,0.32994588]
[1743448863117,0.30291909,607.12,606.16,0.32994588]
[1743448865622,0.30291909,607.47,606.16,0.32994588]
[1743448865816,0.28692039,607.11,606.16,0.32994588]
[1743448866019,0.30291909,607.1,606.16,0.32994588]
[1743448866221,0.30291909,607.45,606.16,0.32994588]
[1743448866421,0.28687781,607.1,606.16,0.32994588]
[1743448866624,0.30291909,607.09,606.16,0.32994588]
[1743448866817,0.30291909,607.08,606.16,0.32994588]
[1743448867019,0.30291909,607.07,606.16,0.32994588]
[1743448867220,0.30291909,607.06,606.16,0.32994588]
[1743448867421,0.30291909,607.08,606.16,0.32994588]
[1743448867623,0.30291909,607.07,606.16,0.32994588]
[1743448867824,0.30291909,607.08,606.16,0.32994588]
[1743448868027,0.30291909,607.07,606.16,0.32994588]
[1743448868221,0.30291909,607.08,606.16,0.32994588]
[1743448868718,0.28691329,607.07,606.16,0.32994588]
[1743448869121,0.30291909,607.06,606.16,0.32994588]
[1743448873927,0.28691329,607.07,606.16,0.32994588]
[1743448874127,0.30298269,607.06,606.16,0.32994588]
[1743448874327,0.30298213,607.05,606.16,0.32994588]
[1743448874526,0.30298213,607.04,606.16,0.32994588]
[1743448874827,0.30298213,607.03,606.16,0.32994588]
[1743448877638,0.30298213,607.02,606.16,0.32994588]
[1743448877935,0.30298213,607.01,606.16,0.32994588]
[1743448878931,0.30303267,607.0,606.16,0.32994588]
[1743448879136,0.30303267,606.99,606.16,0.32994588]
[1743448879438,0.30303267,606.98,606.16,0.32994588]
[1743448879638,0.30303267,607.01,606.16,0.32994588]
[1743448879934,0.30303267,607.0,606.16,0.32994588]
[1743448880137,0.30303267,607.01,606.16,0.32994588]
[1743448880330,0.30303267,607.0,606.16,0.32994588]
[1743448880534,0.32922352,607.49,606.16,0.32994588]
[1743448880732,0.28702215,606.99,606.16,0.32994588]
[1743448880935,0.30303617,606.98,606.16,0.32994588]
[1743448881336,0.59005832,606.97,606.16,0.32994588]
[1743448881536,0.30303617,606.96,606.16,0.32994588]
[1743448883635,0.28699966,606.95,606.16,0.32994588]
[1743448884037,0.30303617,606.94,606.16,0.32994588]
[1743448886643,0.30303617,607.48,606.16,0.32994588]
[1743448886839,0.63221935,607.47,606.16,0.32994588]
[1743448887038,0.28691447,606.93,606.16,0.32994588]
[1743448887243,0.32923436,607.47,606.16,0.32994588]
[1743448887444,0.30298418,607.46,606.16,0.32994588]
[1743448887644,0.28691447,606.92,606.16,0.32994588]
[1743448887844,0.32923436,607.47,606.16,0.32994588]
[1743448888043,0.30298469,607.46,606.16,0.32994588]
[1743448888238,0.28691566,606.91,606.16,0.32994588]
[1743448888442,0.32923436,607.47,606.16,0.32994588]
[1743448888641,0.30298627,607.46,606.16,0.32994588]
[1743448888838,0.28691211,606.9,606.16,0.32994588]
[1743448889148,0.32923436,607.47,606.16,0.32994588]
[1743448889342,0.28690856,606.89,606.16,0.32994588]
[1743448889643,0.32923436,607.47,606.16,0.32994588]
[1743448889845,0.30298327,607.46,606.16,0.32994588]
[1743448890144,0.28690501,606.89,606.16,0.32994588]
[1743448890347,0.32923436,607.47,606.16,0.32994588]
[1743448890543,0.28690146,607.45,606.16,0.32994588]
[1743448890846,0.30298316,607.44,606.16,0.32994588]
[1743448892747,0.28693458,607.43,606.16,0.32994588]
[1743448893141,0.30298316,607.42,606.16,0.32994588]
[1743448894348,0.30298316,607.41,606.16,0.32994588]
[1743448894642,0.30298316,607.4,606.16,0.32994588]
[1743448894847,0.30298316,607.42,606.16,0.32994588]
[1743448895047,0.30298316,607.41,606.16,0.32994588]
[1743448895244,0.30298316,607.42,606.16,0.32994588]
[1743448895442,0.30298316,607.41,606.16,0.32994588]
[1743448895645,0.28693458,607.43,606.16,0.32994588]
[1743448895646,0.30298316,607.4,606.16,0.32994588]
[1743448895945,0.30298316,607.39,606.16,0.32994588]
[1743448896146,0.30298316,607.42,606.16,0.32994588]
[1743448896345,0.30298316,607.41,606.16,0.32994588]
[1743448896552,0.30298316,607.42,606.16,0.32994588]
[1743448898650,0.30298316,607.46,606.16,0.32994588]
[1743448898849,0.28690265,607.41,606.16,0.32994588]
[1743448899150,0.30298316,607.4,606.16,0.32994588]
[1743448899951,0.28690265,607.41,606.16,0.32994588]
[1743448900252,0.30295594,607.4,606.16,0.32994588]
[1743448900947,1.34395594,607.39,606.16,0.32994588]
[1743448901157,0.30295594,607.38,606.16,0.32994588]
[1743448901346,0.30295594,607.37,606.16,0.32994588]
[1743448901549,0.30295594,607.36,606.16,0.32994588]
[1743448901749,0.30295387,607.35,606.16,0.32994588]
[1743448902048,0.30295387,607.34,606.16,0.32994588]
[1743448902250,0.30295387,607.38,606.16,0.32994588]
[1743448902450,0.30295387,607.37,606.16,0.32994588]
[1743448902649,0.30295387,607.36,606.16,0.32994588]
[1743448902849,0.30295387,607.35,606.16,0.32994588]
[1743448903050,0.30295387,607.38,606.16,0.32994588]
[1743448903247,1.041,607.39,606.16,0.32994588]
[1743448903451,0.30295078,607.38,606.16,0.32994588]
[1743448903753,0.30295078,607.37,606.16,0.32994588]
[1743448904057,0.30295078,607.36,606.16,0.32994588]
[1743448904253,0.30295078,607.38,606.16,0.32994588]
[1743448904454,0.30295078,607.37,606.16,0.32994588]
[1743448904654,0.30295078,607.36,606.16,0.32994588]
[1743448904852,0.28687072,607.37,606.16,0.32994588]
[1743448905048,0.3029268,607.36,606.16,0.32994588]
[1743448906547,0.28687072,607.37,606.16,0.32994588]
[1743448906753,0.3028867,607.36,606.16,0.32994588]
[1743448907651,1.041,607.39,606.16,0.32994588]
[1743448907652,0.28683052,607.35,606.16,0.32994588]
[1743448907854,0.3028867,607.34,606.16,0.32994588]
[1743448909962,0.30283015,607.33,606.16,0.32994588]
[1743448910158,0.30283015,607.32,606.16,0.32994588]
[1743448910355,0.30283015,607.34,606.16,0.32994588]
[1743448910563,0.30283015,607.33,606.16,0.32994588]
[1743448910760,0.28684944,607.31,606.16,0.32994588]
[1743448910955,0.30283015,607.3,606.16,0.32994588]
[1743448913664,0.30283015,607.38,606.16,0.32994588]
[1743448913961,0.28683643,607.29,606.16,0.32994588]
[1743448914157,0.30283015,607.37,606.16,0.32994588]
[1743448914357,0.28682579,607.28,606.16,0.32994588]
[1743448914865,0.30283213,607.27,606.16,0.32994588]
[1743448915063,0.28682343,607.27,606.16,0.32994588]
[1743448915357,0.30283213,607.26,606.16,0.32994588]
[1743448916658,0.30283213,607.38,606.16,0.32994588]
[1743448916963,0.28682579,607.25,606.16,0.32994588]
[1743448917159,0.30283213,607.24,606.16,0.32994588]
[1743448917360,0.28680925,607.37,606.16,0.32994588]
[1743448917560,0.30283213,607.36,606.16,0.32994588]
[1743448918163,0.30284828,607.35,606.16,0.32994588]
[1743448918360,0.30284828,607.34,606.16,0.32994588]
[1743448918558,0.30284828,607.36,606.16,0.32994588]
[1743448919856,0.30284828,607.38,606.16,0.32994588]
[1743448920058,0.28681043,607.35,606.16,0.32994588]
[1743448920359,0.30284828,607.34,606.16,0.32994588]
[1743448922365,0.30284313,607.33,606.16,0.32994588]
[1743448922563,0.30284313,607.34,606.16,0.32994588]
[1743448922762,0.58970439,607.33,606.16,0.32994588]
[1743448922962,0.30284313,607.32,606.16,0.32994588]
[1743448925670,0.58975877,607.31,606.16,0.32994588]
[1743448925964,0.30287504,607.3,606.16,0.32994588]
[1743448927169,0.30289272,607.29,606.16,0.32994588]
[1743448927363,0.30289272,607.3,606.16,0.32994588]
[1743448927568,0.30289272,607.29,606.16,0.32994588]
[1743448927770,0.30289272,607.3,606.16,0.32994588]
[1743448927963,0.30289272,607.29,606.16,0.32994588]
[1743448928166,0.30289272,607.28,606.16,0.32994588]
[1743448928364,0.28688373,607.31,606.16,0.32994588]
[1743448928365,0.30289272,607.27,606.16,0.32994588]
[1743448928565,0.30289272,607.3,606.16,0.32994588]
[1743448928761,0.30284574,607.29,606.16,0.32994588]
[1743448928966,0.30284574,607.3,606.16,0.32994588]
[1743448929163,0.30284574,607.29,606.16,0.32994588]
[1743448929464,0.30284574,607.28,606.16,0.32994588]
[1743448929668,0.30284574,607.3,606.16,0.32994588]
[1743448929975,0.30284574,607.29,606.16,0.32994588]
[1743448930174,0.30284574,607.28,606.16,0.32994588]
[1743448930374,0.30283063,607.27,606.16,0.32994588]
[1743448930574,0.30283819,607.26,606.16,0.32994588]
[1743448930771,0.30283819,607.25,606.16,0.32994588]
[1743448930971,0.30283819,607.24,606.16,0.32994588]
[1743448931173,0.30283819,607.23,606.16,0.32994588]
[1743448931374,0.30283819,607.22,606.16,0.32994588]
[1743448931574,0.30283819,607.3,606.16,0.32994588]
[1743448931774,0.28684944,607.22,606.16,0.32994588]
[1743448931973,0.30283819,607.21,606.16,0.32994588]
[1743448932476,0.30283819,607.2,606.16,0.32994588]
[1743448934579,0.30284033,607.19,606.16,0.32994588]
[1743448934780,0.30284033,607.2,606.16,0.32994588]
[1743448934980,0.302847,607.19,606.16,0.32994588]
[1743448935183,0.302847,607.18,606.16,0.32994588]
[1743448935476,0.28684825,607.21,606.16,0.32994588]
[1743448935477,0.302847,607.17,606.16,0.32994588]
[1743448935680,0.3028696,607.16,606.16,0.32994588]
[1743448935880,0.3028696,607.2,606.16,0.32994588]
[1743448936079,0.3028696,607.19,606.16,0.32994588]
[1743448936276,0.3028696,607.2,606.16,0.32994588]
[1743448936476,0.3028696,607.19,606.16,0.32994588]
[1743448936683,0.3028696,607.18,606.16,0.32994588]
[1743448936885,0.3028696,607.17,606.16,0.32994588]
[1743448937103,0.3028696,607.16,606.16,0.32994588]
[1743448937284,0.3028696,607.2,606.16,0.32994588]
[1743448937485,0.3028696,607.19,606.16,0.32994588]
[1743448937785,0.3028696,607.18,606.16,0.32994588]
[1743448937985,0.3028696,607.17,606.16,0.32994588]
[1743448938186,0.28681634,607.18,606.16,0.32994588]
[1743448938586,0.30286805,607.17,606.16,0.32994588]
[1743448940088,0.28681634,607.18,606.16,0.32994588]
[1743448940089,0.30286805,607.16,606.16,0.32994588]
[1743448940591,0.30286805,607.15,606.16,0.32994588]
[1743448940788,0.2868317,607.15,606.16,0.32994588]
[1743448941092,0.30286805,607.14,606.16,0.32994588]
[1743448941491,0.2868317,607.15,606.16,0.32994588]
[1743448941691,0.30285156,607.14,606.16,0.32994588]
[1743448943789,0.58967735,607.13,606.16,0.32994588]
[1743448943984,0.30285156,607.12,606.16,0.32994588]
[1743448944792,0.30286805,607.11,606.16,0.32994588]
[1743448944992,0.30286805,607.1,606.16,0.32994588]
[1743448945294,0.30286805,607.09,606.16,0.32994588]
[1743448945496,0.28682579,607.13,606.16,0.32994588]
[1743448945691,0.30286942,607.12,606.16,0.32994588]
[1743448946395,0.30287026,607.11,606.16,0.32994588]
[1743448946690,0.30287026,607.1,606.16,0.32994588]
[1743448946995,0.30287026,607.09,606.16,0.32994588]
[1743448947198,0.30287026,607.08,606.16,0.32994588]
[1743448947495,0.28682579,607.13,606.16,0.32994588]
[1743448947692,0.30287267,607.12,606.16,0.32994588]
[1743448947891,0.28682579,607.13,606.16,0.32994588]
[1743448949499,1.041,607.39,606.16,0.32994588]
[1743448949698,0.30286523,607.38,606.16,0.32994588]
[1743448950094,0.58969457,607.38,606.16,0.32994588]
[1743448950294,0.30286523,607.37,606.16,0.32994588]
[1743448952904,0.58981394,607.36,606.16,0.32994588]
[1743448953102,0.30292903,607.35,606.16,0.32994588]
[1743448953805,0.30292903,607.34,606.16,0.32994588]
[1743448954003,0.30292903,607.33,606.16,0.32994588]
[1743448954205,0.30292903,607.32,606.16,0.32994588]
[1743448954501,0.30292903,607.31,606.16,0.32994588]
[1743448954704,0.30292903,607.3,606.16,0.32994588]
[1743448954904,0.30292903,607.29,606.16,0.32994588]
[1743448955306,0.30292903,607.28,606.16,0.32994588]
[1743448955506,0.30292903,607.27,606.16,0.32994588]
[1743448955707,0.30292903,607.38,606.16,0.32994588]
[1743448955907,0.28694168,607.28,606.16,0.32994588]
[1743448956209,0.30298953,607.27,606.16,0.32994588]
[1743448956407,0.2869334,607.27,606.16,0.32994588]
[1743448956601,0.30298953,607.26,606.16,0.32994588]
[1743448957608,0.30298405,607.25,606.16,0.32994588]
[1743448957809,0.30298405,607.26,606.16,0.32994588]
[1743448958008,0.30298405,607.25,606.16,0.32994588]
[1743448958208,0.30298405,607.24,606.16,0.32994588]
[1743448958403,0.30298405,607.23,606.16,0.32994588]
[1743448958603,0.30298405,607.22,606.16,0.32994588]
[1743448958805,0.30298405,607.21,606.16,0.32994588]
[1743448959003,0.30298405,607.2,606.16,0.32994588]
[1743448959203,0.30298405,607.19,606.16,0.32994588]
[1743448959509,0.30298405,607.18,606.16,0.32994588]
[1743448959709,0.30298405,607.22,606.16,0.32994588]
[1743448960010,0.30298405,607.21,606.16,0.32994588]
[1743448960205,0.30298405,607.22,606.16,0.32994588]
[1743448960911,0.30298405,607.21,606.16,0.32994588]
[1743448961116,0.30298405,607.22,606.16,0.32994588]
[1743448961317,0.782,607.2,606.16,0.32994588]
[1743448961514,0.30298405,607.19,606.16,0.32994588]
[1743448961910,0.58996241,607.19,606.16,0.32994588]
[1743448962116,0.30298405,607.18,606.16,0.32994588]
[1743448962312,0.28697836,607.19,606.16,0.32994588]
[1743448962617,0.30298318,607.18,606.16,0.32994588]
[1743448967620,0.30298318,607.17,606.16,0.32994588]
[1743448967817,0.30298318,607.16,606.16,0.32994588]
[1743448968918,0.30292006,607.15,606.16,0.32994588]
[1743448969119,0.30292006,607.14,606.16,0.32994588]
[1743448969320,0.30292006,607.13,606.16,0.32994588]
[1743448969623,0.30292006,607.12,606.16,0.32994588]
[1743448969819,0.30292006,607.16,606.16,0.32994588]
[1743448970020,0.28690501,607.17,606.16,0.32994588]
[1743448970021,0.30292006,607.15,606.16,0.32994588]
[1743448970217,0.30292006,607.14,606.16,0.32994588]
[1743448970418,0.782,607.2,606.16,0.32994588]
[1743448970617,0.30291304,607.19,606.16,0.32994588]
[1743448971015,0.58983461,607.19,606.16,0.32994588]
[1743448971220,0.30291304,607.18,606.16,0.32994588]
[1743448973725,0.30291304,607.17,606.16,0.32994588]
[1743448973921,0.30291304,607.16,606.16,0.32994588]
[1743448975123,0.897,607.15,606.16,0.32994588]
[1743448975326,0.30291304,607.14,606.16,0.32994588]
[1743448976827,0.28694996,607.13,606.16,0.32994588]
[1743448977023,0.30291304,607.12,606.16,0.32994588]
[1743448978425,0.28694996,607.13,606.16,0.32994588]
[1743448978631,0.30294719,607.12,606.16,0.32994588]
[1743448979822,0.5899007,607.11,606.16,0.32994588]
[1743448980023,0.28695351,607.11,606.16,0.32994588]
[1743448980329,0.30294443,607.1,606.16,0.32994588]
[1743448982825,0.2869405,607.09,606.16,0.32994588]
[1743448983032,0.30294443,607.08,606.16,0.32994588]
[1743448985831,0.28694996,607.07,606.16,0.32994588]
[1743448986035,0.30294443,607.06,606.16,0.32994588]
[1743448988637,0.30294443,607.14,606.16,0.32994588]
[1743448988837,0.28695233,607.05,606.16,0.32994588]
[1743448989033,0.30294443,607.04,606.16,0.32994588]
[1743448989238,0.30294443,607.14,606.16,0.32994588]
[1743448989438,0.30294443,607.13,606.16,0.32994588]
[1743448989635,0.28698309,607.03,606.16,0.32994588]
[1743448989839,0.30294443,607.02,606.16,0.32994588]
[1743448990040,0.30294443,607.14,606.16,0.32994588]
[1743448990334,0.28698072,607.02,606.16,0.32994588]
[1743448990541,0.30294443,607.01,606.16,0.32994588]
[1743448990740,0.30294443,607.14,606.16,0.32994588]
[1743448991039,0.28697836,607.01,606.16,0.32994588]
[1743448991240,0.30294443,607.0,606.16,0.32994588]
[1743448991441,0.30294443,606.99,606.16,0.32994588]
[1743448991740,0.30294443,606.98,606.16,0.32994588]
[1743448991939,0.30294443,606.99,606.16,0.32994588]
[1743448992235,0.30294443,606.98,606.16,0.32994588]
[1743448992440,0.30301527,606.97,606.16,0.32994588]
[1743448992635,0.30301527,606.99,606.16,0.32994588]
[1743448994035,0.30301194,606.98,606.16,0.32994588]
[1743448994240,0.30301194,606.97,606.16,0.32994588]
[1743448994442,0.30301194,606.99,606.16,0.32994588]
[1743448994643,0.30301256,606.98,606.16,0.32994588]
[1743448994843,0.28697362,606.96,606.16,0.32994588]
[1743448995042,0.30301256,606.95,606.16,0.32994588]
[1743448995342,1.30301256,606.95,606.16,0.32994588]
[1743448995642,0.30301256,606.94,606.16,0.32994588]
[1743448997943,0.28696298,606.93,606.16,0.32994588]
[1743448998144,0.30301256,606.92,606.16,0.32994588]
[1743448998942,0.30301538,606.91,606.16,0.32994588]
[1743448999137,0.30301538,606.92,606.16,0.32994588]
[1743448999341,0.30301538,606.91,606.16,0.32994588]
[1743448999542,0.30301538,606.92,606.16,0.32994588]
[1743448999743,0.30301538,606.91,606.16,0.32994588]